fUST/lending_fUST_20240612
["ID","MTS","AMOUNT","RATE_DAILY","PERIOD"]
[329265241,1718205061856,-4340.08,0.0001863,2]
[329265242,1718205061870,-500.0,0.0001863,2]
[329265244,1718205061891,-3317.59,0.0001863,2]
[329265246,1718205061912,-8992.89,0.0001863,2]
[329265248,1718205061930,-550.13,0.0001863,2]
[329265251,1718205061950,-1361.27,0.0001863,2]
[329265253,1718205061964,-2578.88,0.0001863,2]
[329265255,1718205061977,-500.0,0.0001863,2]
[329265257,1718205061995,-500.0,0.0001863,2]
[329265258,1718205062012,-6532.33,0.0001863,2]
[329265260,1718205062028,-500.0,0.0001863,2]
[329265261,1718205062042,-555.1,0.0001863,2]
[329265263,1718205062067,-250.0,0.0001863,2]
[329265266,1718205062093,-473.516057,0.00018728,2]
[329265267,1718205062107,-431.454293,0.00018728,2]
[329265269,1718205062119,-507.812431,0.00018728,2]
[329265271,1718205062131,-431.454293,0.00018728,2]
[329265272,1718205062149,-507.812432,0.00018728,2]
[329265274,1718205062164,-431.454293,0.00018728,2]
[329265276,1718205062175,-277.948798,0.00018728,2]
[329265277,1718205062198,-331.703528,0.00018728,2]
[329265279,1718205062210,-153.505495,0.00018728,2]
[329265285,1718205062361,-176.108903,0.00018728,2]
[329265287,1718205062377,-590.1,0.00018735,2]
[329265289,1718205062394,-587.0,0.00018759,2]
[329265291,1718205062420,-43956.15515645,0.0001885,2]
[329265293,1718205062436,-500.0,0.00018904,2]
[329265295,1718205062454,-500.0,0.00018904,2]
[329265297,1718205062479,-500.0,0.00018904,2]
[329265299,1718205062496,-519.8,0.00018904,2]
[329265301,1718205062536,-500.0,0.00018904,2]
[329265303,1718205062553,-500.0,0.00018904,2]
[329265305,1718205062581,-500.0,0.00018904,2]
[329265308,1718205062609,-500.0,0.00018904,2]
[329265310,1718205062642,-500.0,0.00018904,2]
[329265313,1718205062663,-500.0,0.00018904,2]
[329265314,1718205062685,-538.01,0.00018904,2]
[329265316,1718205062695,-500.0,0.00018904,2]
[329265317,1718205062706,-894.59,0.00018904,2]
[329265319,1718205062724,-500.0,0.00018904,2]
[329265321,1718205062739,-561.51,0.00018904,2]
[329265323,1718205062750,-1000.15,0.00018904,2]
[329265325,1718205062764,-866.36,0.00018904,2]
[329265327,1718205062785,-975.17,0.00018904,2]
[329265328,1718205062798,-627.99,0.00018904,2]
[329265330,1718205062809,-781.98,0.00018904,2]
[329265332,1718205062819,-2549.55,0.00018904,2]
[329265334,1718205062830,-500.0,0.00018904,2]
[329265336,1718205062840,-1397.37,0.00018904,2]
[329265338,1718205062851,-598.07,0.00018904,2]
[329265339,1718205062865,-634.57,0.00018904,2]
[329265340,1718205062882,-4340.08,0.00018904,2]
[329265342,1718205062904,-500.0,0.00018904,2]
[329265343,1718205062915,-3317.59,0.00018904,2]
[329265345,1718205062927,-8992.89,0.00018904,2]
[329265347,1718205062952,-550.13,0.00018904,2]
[329265349,1718205062963,-1361.27,0.00018904,2]
[329265350,1718205062979,-2578.88,0.00018904,2]
[329265351,1718205062995,-500.0,0.00018904,2]
[329265353,1718205063011,-500.0,0.00018904,2]
[329265355,1718205063022,-6532.33,0.00018904,2]
[329265357,1718205063040,-500.0,0.00018904,2]
[329265359,1718205063051,-555.1,0.00018904,2]
[329265361,1718205063065,-590.1,0.00018946,2]
[329265364,1718205063076,-473.516057,0.00018956,2]
[329265365,1718205063087,-431.454293,0.00018956,2]
[329265367,1718205063098,-507.812431,0.00018956,2]
[329265369,1718205063110,-431.454293,0.00018956,2]
[329265371,1718205063121,-507.812432,0.00018956,2]
[329265373,1718205063132,-431.454293,0.00018956,2]
[329265375,1718205063148,-277.948798,0.00018956,2]
[329265377,1718205063163,-331.703528,0.00018956,2]
[329265380,1718205063180,-153.505495,0.00018956,2]
[329265381,1718205063200,-176.108903,0.00018956,2]
[329265385,1718205063233,-163.14541634,0.00019,2]
[329265386,1718205063254,-7270.73643792,0.00019,2]
[329265388,1718205063266,-819.50250789,0.00019,2]
[329265390,1718205063279,-1115.187625,0.000191,2]
[329265393,1718205063299,-590.1,0.00019157,2]
[329265394,1718205063312,-507.44215869,0.00019178,2]
[329265396,1718205063324,-392.83937806,0.00019178,2]
[329265398,1718205063340,-500.0,0.00019178,2]
[329265400,1718205063364,-500.0,0.00019178,2]
[329265402,1718205063384,-500.0,0.00019178,2]
[329265404,1718205063409,-500.0,0.00019178,2]
[329265406,1718205063419,-500.0,0.00019178,2]
[329265408,1718205063434,-185.91389287,0.00019178,2]
[329265409,1718205063446,-500.0,0.00019178,2]
[329265411,1718205063471,-500.0,0.00019178,2]
[329265413,1718205063485,-500.0,0.00019178,2]
[329265416,1718205063518,-500.0,0.00019178,2]
[329265417,1718205063542,-500.0,0.00019178,2]
[329265419,1718205063563,-365.87107359,0.00019178,2]
[329265420,1718205063582,-500.0,0.00019178,2]
[329265422,1718205063600,-500.0,0.00019178,2]
[329265424,1718205063629,-500.0,0.00019178,2]
[329265425,1718205063642,-401.27237271,0.00019178,2]
[329265427,1718205063656,-500.0,0.00019178,2]
[329265429,1718205063688,-294.59845501,0.00019178,2]
[329265430,1718205063712,-500.0,0.00019178,2]
[329265432,1718205063727,-500.0,0.00019178,2]
[329265434,1718205063743,-500.0,0.00019178,2]
[329265436,1718205063753,-500.0,0.00019178,2]
[329265438,1718205063764,-500.0,0.00019178,2]
[329265441,1718205063788,-633.80945051,0.00019178,2]
[329265442,1718205063802,-500.0,0.00019178,2]
[329265444,1718205063822,-500.0,0.00019178,2]
[329265446,1718205063841,-500.0,0.00019178,2]
[329265447,1718205063855,-500.0,0.00019178,2]
[329265449,1718205063866,-500.0,0.00019178,2]
[329265451,1718205063878,-500.0,0.00019178,2]
[329265452,1718205063908,-500.0,0.00019178,2]
[329265454,1718205063920,-500.0,0.00019178,2]
[329265455,1718205063931,-500.0,0.00019178,2]
[329265457,1718205063942,-500.0,0.00019178,2]
[329265458,1718205063953,-500.0,0.00019178,2]
[329265460,1718205063973,-500.0,0.00019178,2]
[329265462,1718205063983,-500.0,0.00019178,2]
[329265464,1718205064003,-500.0,0.00019178,2]
[329265465,1718205064021,-500.0,0.00019178,2]
[329265467,1718205064039,-500.0,0.00019178,2]
[329265469,1718205064051,-500.0,0.00019178,2]
[329265471,1718205064062,-500.0,0.00019178,2]
[329265473,1718205064075,-500.0,0.00019178,2]
[329265475,1718205064088,-500.0,0.00019178,2]
[329265477,1718205064103,-500.0,0.00019178,2]
[329265479,1718205064118,-500.0,0.00019178,2]
[329265481,1718205064135,-500.0,0.00019178,2]
[329265483,1718205064157,-500.0,0.00019178,2]
[329265485,1718205064173,-500.0,0.00019178,2]
[329265486,1718205064194,-500.0,0.00019178,2]
[329265488,1718205064210,-500.0,0.00019178,2]
[329265490,1718205064222,-500.0,0.00019178,2]
[329265493,1718205064243,-500.0,0.00019178,2]
[329265495,1718205064262,-500.0,0.00019178,2]
[329265497,1718205064279,-500.0,0.00019178,2]
[329265498,1718205064301,-173.03991133,0.00019178,2]
[329265500,1718205064321,-500.0,0.00019178,2]
[329265503,1718205064343,-500.0,0.00019178,2]
[329265505,1718205064364,-585.45700926,0.00019178,2]
[329265507,1718205064389,-585.45700926,0.00019178,2]
[329265509,1718205064406,-585.45700926,0.00019178,2]
[329265510,1718205064416,-585.45700926,0.00019178,2]
[329265511,1718205064427,-585.45700926,0.00019178,2]
[329265513,1718205064442,-585.45700926,0.00019178,2]
[329265515,1718205064462,-585.45700926,0.00019178,2]
[329265516,1718205064474,-585.45700926,0.00019178,2]
[329265517,1718205064484,-585.45700926,0.00019178,2]
[329265519,1718205064512,-585.45700926,0.00019178,2]
[329265520,1718205064525,-585.45700926,0.00019178,2]
[329265522,1718205064539,-585.45700926,0.00019178,2]
[329265524,1718205064549,-585.45700926,0.00019178,2]
[329265526,1718205064560,-585.45700926,0.00019178,2]
[329265527,1718205064570,-585.45700926,0.00019178,2]
[329265529,1718205064589,-585.45700926,0.00019178,2]
[329265531,1718205064604,-585.45700926,0.00019178,2]
[329265532,1718205064618,-585.45700926,0.00019178,2]
[329265534,1718205064628,-585.45700926,0.00019178,2]
[329265536,1718205064639,-585.45700926,0.00019178,2]
[329265538,1718205064657,-585.45700926,0.00019178,2]
[329265540,1718205064667,-585.45700926,0.00019178,2]
[329265542,1718205064677,-585.45700926,0.00019178,2]
[329265544,1718205064686,-585.45700926,0.00019178,2]
[329265546,1718205064697,-585.45700926,0.00019178,2]
[329265548,1718205064707,-585.45700926,0.00019178,2]
[329265550,1718205064718,-585.45700926,0.00019178,2]
[329265552,1718205064732,-585.45700926,0.00019178,2]
[329265554,1718205064744,-585.45700926,0.00019178,2]
[329265556,1718205064755,-585.45700926,0.00019178,2]
[329265558,1718205064770,-585.45700926,0.00019178,2]
[329265560,1718205064783,-585.45700926,0.00019178,2]
[329265562,1718205064797,-585.45700926,0.00019178,2]
[329265564,1718205064812,-585.45700926,0.00019178,2]
[329265565,1718205064830,-585.45700926,0.00019178,2]
[329265568,1718205064849,-500.0,0.00019178,2]
[329265570,1718205064869,-550.0,0.00019178,2]
[329265571,1718205064884,-1529.91564261,0.00019178,2]
[329265573,1718205064898,-500.0,0.00019178,2]
[329265575,1718205064914,-1529.91564261,0.00019178,2]
[329265577,1718205064926,-1529.91564261,0.00019178,2]
[329265579,1718205064944,-993.330613,0.00019178,2]
[329265590,1718205065064,-295.34002,0.00019178,2]
[329265592,1718205065081,-241.24500961,0.00019178,2]
[329265594,1718205065094,-1240.83893764,0.00019178,2]
[329265596,1718205065107,-289.07670497,0.00019178,2]
[329265597,1718205065118,-1529.91564261,0.00019178,2]
[329265599,1718205065128,-1529.91564261,0.00019178,2]
[329265601,1718205065138,-1529.91564261,0.00019178,2]
[329265603,1718205065148,-1529.91564261,0.00019178,2]
[329265605,1718205065159,-1529.91564261,0.00019178,2]
[329265607,1718205065168,-1421.83019809,0.00019178,2]
[329265609,1718205065186,-108.08544452,0.00019178,2]
[329265611,1718205065196,-363.28811526,0.00019178,2]
[329265614,1718205065217,-991.7178116,0.00019178,2]
[329265622,1718205065295,-174.90971575,0.00019178,2]
[329265624,1718205065306,-1529.91564261,0.00019178,2]
[329265626,1718205065322,-1529.91564261,0.00019178,2]
[329265627,1718205065335,-1529.91564261,0.00019178,2]
[329265629,1718205065348,-1529.91564261,0.00019178,2]
[329265631,1718205065363,-1529.91564261,0.00019178,2]
[329265632,1718205065377,-1529.91564261,0.00019178,2]
[329265634,1718205065390,-1529.91564261,0.00019178,2]
[329265636,1718205065412,-1529.91564261,0.00019178,2]
[329265639,1718205065452,-1529.91564261,0.00019178,2]
[329265641,1718205065466,-1529.91564261,0.00019178,2]
[329265642,1718205065487,-1529.91564261,0.00019178,2]
[329265644,1718205065503,-1507.88011271,0.00019178,2]
[329265646,1718205065517,-22.0355299,0.00019178,2]
[329265648,1718205065528,-1529.91564261,0.00019178,2]
[329265650,1718205065542,-1529.91564261,0.00019178,2]
[329265652,1718205065566,-1529.91564261,0.00019178,2]
[329265655,1718205065578,-500.0,0.00019178,2]
[329265656,1718205065589,-568.45987028,0.00019178,2]
[329265658,1718205065603,-568.45987028,0.00019178,2]
[329265660,1718205065614,-568.45987028,0.00019178,2]
[329265662,1718205065623,-568.45987028,0.00019178,2]
[329265664,1718205065634,-568.45987028,0.00019178,2]
[329265666,1718205065645,-568.45987028,0.00019178,2]
[329265668,1718205065655,-568.45987028,0.00019178,2]
[329265670,1718205065666,-568.45987028,0.00019178,2]
[329265672,1718205065676,-568.45987028,0.00019178,2]
[329265674,1718205065689,-568.45987028,0.00019178,2]
[329265676,1718205065700,-568.45987028,0.00019178,2]
[329265678,1718205065715,-568.45987028,0.00019178,2]
[329265680,1718205065727,-568.45987028,0.00019178,2]
[329265682,1718205065739,-568.45987028,0.00019178,2]
[329265684,1718205065750,-568.45987028,0.00019178,2]
[329265687,1718205065773,-568.45987028,0.00019178,2]
[329265689,1718205065784,-568.45987028,0.00019178,2]
[329265691,1718205065797,-568.45987028,0.00019178,2]
[329265693,1718205065810,-568.45987028,0.00019178,2]
[329265695,1718205065821,-568.45987028,0.00019178,2]
[329265697,1718205065832,-568.45987028,0.00019178,2]
[329265699,1718205065843,-568.45987028,0.00019178,2]
[329265701,1718205065857,-568.45987028,0.00019178,2]
[329265703,1718205065869,-568.45987028,0.00019178,2]
[329265705,1718205065884,-1471.41886804,0.00019178,2]
[329265707,1718205065896,-1471.41886804,0.00019178,2]
[329265709,1718205065906,-1471.41886804,0.00019178,2]
[329265710,1718205065916,-1471.41886804,0.00019178,2]
[329265712,1718205065927,-1471.41886804,0.00019178,2]
[329265715,1718205065940,-1471.41886804,0.00019178,2]
[329265716,1718205065955,-1471.41886804,0.00019178,2]
[329265719,1718205065968,-1471.41886804,0.00019178,2]
[329265720,1718205065979,-1471.41886804,0.00019178,2]
[329265722,1718205065991,-1471.41886804,0.00019178,2]
[329265724,1718205066005,-1471.41886804,0.00019178,2]
[329265726,1718205066028,-1471.41886804,0.00019178,2]
[329265729,1718205066056,-1471.41886804,0.00019178,2]
[329265730,1718205066067,-1471.41886804,0.00019178,2]
[329265732,1718205066085,-557.09067286,0.00019178,2]
[329265734,1718205066097,-557.09067286,0.00019178,2]
[329265735,1718205066112,-557.09067286,0.00019178,2]
[329265737,1718205066130,-523.79983934,0.00019178,2]
[329265740,1718205066145,-33.29083352,0.00019178,2]
[329265741,1718205066158,-1471.41886802,0.00019178,2]
[329265743,1718205066173,-1471.41886802,0.00019178,2]
[329265745,1718205066183,-1471.41886802,0.00019178,2]
[329265747,1718205066196,-519.8,0.00019178,2]
[329265749,1718205066207,-557.09067285,0.00019178,2]
[329265751,1718205066218,-500.0,0.00019178,2]
[329265753,1718205066234,-500.0,0.00019178,2]
[329265756,1718205066257,-500.0,0.00019178,2]
[329265758,1718205066268,-500.0,0.00019178,2]
[329265760,1718205066279,-500.0,0.00019178,2]
[329265762,1718205066291,-538.01,0.00019178,2]
[329265764,1718205066302,-894.59,0.00019178,2]
[329265766,1718205066313,-500.0,0.00019178,2]
[329265768,1718205066324,-561.51,0.00019178,2]
[329265769,1718205066336,-1000.15,0.00019178,2]
[329265771,1718205066346,-866.36,0.00019178,2]
[329265773,1718205066357,-975.17,0.00019178,2]
[329265775,1718205066368,-627.99,0.00019178,2]
[329265777,1718205066379,-280.98188957,0.00019178,2]
[329265779,1718205066392,-370.33268568,0.00019178,2]
[329266978,1718205748342,557.0,7.95e-06,30]
[329267484,1718206241963,-1518.16131932,0.00015504,2]
[329267486,1718206241986,-300.0,0.00015505,2]
[329267488,1718206241998,-300.0,0.00015505,2]
[329267491,1718206242040,-24900.0,0.00015506,2]
[329267493,1718206242070,-1002.65410154,0.00016338,2]
[329267495,1718206242100,-398.141,0.00016436,2]
[329267497,1718206242133,-500.0,0.00016438,2]
[329267499,1718206242161,-500.0,0.00016438,2]
[329267501,1718206242182,-500.0,0.00016438,2]
[329267503,1718206242196,-500.0,0.00016438,2]
[329267505,1718206242213,-500.0,0.00016438,2]
[329267507,1718206242237,-500.0,0.00016438,2]
[329267509,1718206242253,-500.0,0.00016438,2]
[329267511,1718206242268,-500.0,0.00016438,2]
[329267513,1718206242284,-772.3,0.00016438,2]
[329267515,1718206242310,-500.0,0.00016438,2]
[329267517,1718206242326,-506.9,0.00016438,2]
[329267519,1718206242350,-5607.12,0.00016438,2]
[329267522,1718206242376,-503.71,0.00016438,2]
[329267524,1718206242398,-500.0,0.00016438,2]
[329267526,1718206242418,-7300.26,0.00016438,2]
[329267528,1718206242443,-500.0,0.00016438,2]
[329267531,1718206242458,-380.15,0.00016438,2]
[329267533,1718206242483,-499.11823412,0.00016438,2]
[329267535,1718206242501,-1170.2,0.00016438,2]
[329267537,1718206242528,-2295.26,0.00016438,2]
[329267540,1718206242560,-500.0,0.00016438,2]
[329267542,1718206242583,-500.0,0.00016438,2]
[329267543,1718206242604,-500.0,0.0001671,2]
[329267545,1718206242622,-500.0,0.0001671,2]
[329267548,1718206242658,-500.0,0.0001671,2]
[329267550,1718206242674,-500.0,0.0001671,2]
[329267553,1718206242699,-500.0,0.0001671,2]
[329267555,1718206242722,-500.0,0.0001671,2]
[329267558,1718206242742,-500.0,0.0001671,2]
[329267560,1718206242767,-500.0,0.0001671,2]
[329267561,1718206242783,-500.0,0.0001671,2]
[329267564,1718206242803,-500.0,0.0001671,2]
[329267566,1718206242815,-500.0,0.0001671,2]
[329267568,1718206242828,-500.0,0.0001671,2]
[329267570,1718206242847,-695.41,0.0001671,2]
[329267572,1718206242877,-665.41,0.0001671,2]
[329267573,1718206242892,-500.0,0.0001671,2]
[329267575,1718206242909,-367.80156562,0.0001671,2]
[329267577,1718206242949,-1164.09,0.0001671,2]
[329267579,1718206242975,-699.97,0.0001671,2]
[329267581,1718206243014,-2132.65,0.0001671,2]
[329267583,1718206243045,-1144.97,0.0001671,2]
[329267586,1718206243057,-500.0,0.0001671,2]
[329267589,1718206243071,-500.0,0.0001671,2]
[329267592,1718206243083,-500.0,0.0001671,2]
[329267595,1718206243106,-500.0,0.0001671,2]
[329267598,1718206243126,-500.0,0.0001671,2]
[329267601,1718206243141,-2856.55,0.0001671,2]
[329267603,1718206243152,-500.0,0.0001671,2]
[329267605,1718206243170,-500.0,0.00016711,2]
[329267606,1718206243200,-500.0,0.00016711,2]
[329267608,1718206243213,-224.38122519,0.00016711,2]
[329267611,1718206243231,-500.0,0.00016711,2]
[329267613,1718206243260,-500.0,0.00016711,2]
[329267615,1718206243278,-500.0,0.00016711,4]
[329267617,1718206243294,-250.0,0.00016711,2]
[329267619,1718206243325,-3181.85,0.00016711,2]
[329267621,1718206243360,-500.0,0.00016711,2]
[329267623,1718206243377,-541.07968919,0.00016711,2]
[329267625,1718206243392,-500.0,0.00016711,2]
[329267627,1718206243420,-500.0,0.00016712,2]
[329267629,1718206243432,-500.0,0.00016712,2]
[329267631,1718206243464,-500.0,0.00016712,2]
[329267633,1718206243478,-500.0,0.00016712,2]
[329267636,1718206243513,-500.0,0.00016712,2]
[329267637,1718206243537,-500.0,0.00016712,2]
[329267639,1718206243554,-500.0,0.00016712,2]
[329267642,1718206243574,-772.3,0.00016712,2]
[329267644,1718206243595,-500.0,0.00016712,2]
[329267646,1718206243618,-506.9,0.00016712,2]
[329267649,1718206243635,-5607.12,0.00016712,2]
[329267651,1718206243650,-503.71,0.00016712,2]
[329267653,1718206243664,-500.0,0.00016712,2]
[329267655,1718206243691,-7300.26,0.00016712,2]
[329267657,1718206243713,-500.0,0.00016712,2]
[329267659,1718206243730,-1170.2,0.00016712,2]
[329267661,1718206243747,-2295.26,0.00016712,2]
[329267663,1718206243765,-500.0,0.00016712,2]
[329267665,1718206243778,-500.0,0.00016712,2]
[329267667,1718206243827,-420.0,0.00016961,2]
[329267669,1718206243842,-500.0,0.00016984,2]
[329267672,1718206243860,-500.0,0.00016984,2]
[329267674,1718206243882,-500.0,0.00016984,2]
[329267675,1718206243901,-500.0,0.00016984,2]
[329267677,1718206243933,-500.0,0.00016984,2]
[329267680,1718206243952,-500.0,0.00016984,2]
[329267682,1718206243971,-500.0,0.00016984,2]
[329267684,1718206244001,-500.0,0.00016984,2]
[329267686,1718206244042,-500.0,0.00016984,2]
[329267688,1718206244082,-500.0,0.00016984,2]
[329267690,1718206244098,-695.41,0.00016984,2]
[329267693,1718206244111,-665.41,0.00016984,2]
[329267694,1718206244127,-500.0,0.00016984,2]
[329267696,1718206244140,-1164.09,0.00016984,2]
[329267698,1718206244155,-699.97,0.00016984,2]
[329267700,1718206244177,-2132.65,0.00016984,2]
[329267702,1718206244189,-1144.97,0.00016984,2]
[329267704,1718206244201,-500.0,0.00016984,2]
[329267706,1718206244216,-500.0,0.00016984,2]
[329267708,1718206244234,-500.0,0.00016984,2]
[329267710,1718206244250,-500.0,0.00016984,2]
[329267712,1718206244268,-2856.55,0.00016984,2]
[329267714,1718206244282,-500.0,0.00016984,2]
[329267717,1718206244301,-500.0,0.00016985,2]
[329267718,1718206244318,-500.0,0.00016985,2]
[329267720,1718206244332,-499.00173962,0.00016985,2]
[329267722,1718206244349,-500.0,0.00016985,4]
[329267724,1718206244372,-356.49112168,0.00016985,2]
[329267726,1718206244391,-3181.85,0.00016985,2]
[329267728,1718206244404,-500.0,0.00016985,2]
[329267730,1718206244421,-500.0,0.00016985,2]
[329267732,1718206244433,-504.13967225,0.00016986,2]
[329267734,1718206244447,-500.0,0.00016986,2]
[329267737,1718206244461,-500.0,0.00016986,2]
[329267739,1718206244473,-500.0,0.00016986,2]
[329267740,1718206244485,-500.0,0.00016986,2]
[329267742,1718206244502,-500.0,0.00016986,2]
[329267744,1718206244530,-500.0,0.00016986,2]
[329267747,1718206244558,-772.3,0.00016986,2]
[329267749,1718206244570,-500.0,0.00016986,2]
[329267751,1718206244584,-506.9,0.00016986,2]
[329267753,1718206244616,-5607.12,0.00016986,2]
[329267756,1718206244627,-503.71,0.00016986,2]
[329267758,1718206244663,-500.0,0.00016986,2]
[329267760,1718206244697,-7300.26,0.00016986,2]
[329267762,1718206244715,-500.0,0.00016986,2]
[329267764,1718206244730,-1170.2,0.00016986,2]
[329267766,1718206244753,-2295.26,0.00016986,2]
[329267767,1718206244769,-500.0,0.00016986,2]
[329267772,1718206244812,-500.0,0.00016986,2]
[329267774,1718206244837,-420.0,0.00017056,2]
[329267777,1718206244868,-264.65816162,0.00017158,2]
[329267779,1718206244880,-500.0,0.00017258,2]
[329267781,1718206244890,-500.0,0.00017258,2]
[329267784,1718206244902,-500.0,0.00017258,2]
[329267785,1718206244933,-500.0,0.00017258,2]
[329267788,1718206244954,-500.0,0.00017258,2]
[329267790,1718206244968,-500.0,0.00017258,2]
[329267793,1718206244993,-500.0,0.00017258,2]
[329267794,1718206245008,-500.0,0.00017258,2]
[329267797,1718206245026,-500.0,0.00017258,2]
[329267799,1718206245051,-500.0,0.00017258,2]
[329267801,1718206245062,-695.41,0.00017258,2]
[329267804,1718206245088,-665.41,0.00017258,2]
[329267806,1718206245103,-500.0,0.00017258,2]
[329267808,1718206245119,-1164.09,0.00017258,2]
[329267810,1718206245135,-699.97,0.00017258,2]
[329267812,1718206245162,-2132.65,0.00017258,2]
[329267813,1718206245174,-1144.97,0.00017258,2]
[329267814,1718206245192,-500.0,0.00017258,2]
[329267816,1718206245204,-500.0,0.00017258,2]
[329267818,1718206245232,-613.70082643,0.00017258,2]
[329267819,1718206245256,-500.0,0.00017258,2]
[329267821,1718206245269,-2856.55,0.00017258,2]
[329267822,1718206245281,-500.0,0.00017258,2]
[329267823,1718206245310,-500.0,0.00017259,2]
[329267825,1718206245322,-500.0,0.00017259,2]
[329267827,1718206245341,-500.0,0.00017259,4]
[329267830,1718206245379,-3181.85,0.00017259,2]
[329267831,1718206245405,-500.0,0.00017259,2]
[329267833,1718206245420,-500.0,0.00017259,2]
[329267836,1718206245441,-500.0,0.0001726,2]
[329267838,1718206245480,-500.0,0.0001726,2]
[329267840,1718206245516,-500.0,0.0001726,2]
[329267842,1718206245526,-500.0,0.0001726,2]
[329267843,1718206245544,-500.0,0.0001726,2]
[329267845,1718206245560,-772.3,0.0001726,2]
[329267846,1718206245571,-500.0,0.0001726,2]
[329267847,1718206245582,-506.9,0.0001726,2]
[329267849,1718206245596,-5607.12,0.0001726,2]
[329267851,1718206245620,-503.71,0.0001726,2]
[329267852,1718206245631,-500.0,0.0001726,2]
[329267854,1718206245654,-7300.26,0.0001726,2]
[329267856,1718206245675,-500.0,0.0001726,2]
[329267858,1718206245693,-1170.2,0.0001726,2]
[329267860,1718206245706,-2295.26,0.0001726,2]
[329267863,1718206245732,-535.53772398,0.0001726,2]
[329267866,1718206245768,-500.0,0.00017532,2]
[329267868,1718206245793,-500.0,0.00017532,2]
[329267871,1718206245819,-500.0,0.00017532,2]
[329267873,1718206245847,-500.0,0.00017532,2]
[329267875,1718206245871,-500.0,0.00017532,2]
[329267878,1718206245892,-500.0,0.00017532,2]
[329267879,1718206245905,-500.0,0.00017532,2]
[329267881,1718206245929,-500.0,0.00017532,2]
[329267884,1718206245950,-500.0,0.00017532,2]
[329267886,1718206245972,-695.41,0.00017532,2]
[329267888,1718206245989,-665.41,0.00017532,2]
[329267890,1718206246000,-500.0,0.00017532,2]
[329267892,1718206246017,-1164.09,0.00017532,2]
[329267895,1718206246038,-699.97,0.00017532,2]
[329267897,1718206246057,-2132.65,0.00017532,2]
[329267899,1718206246072,-1144.97,0.00017532,2]
[329267901,1718206246090,-500.0,0.00017532,2]
[329267902,1718206246102,-500.0,0.00017532,2]
[329267904,1718206246123,-500.0,0.00017532,2]
[329267906,1718206246134,-500.0,0.00017533,2]
[329267909,1718206246148,-500.0,0.00017533,2]
[329267911,1718206246161,-500.0,0.00017533,4]
[329267913,1718206246177,-3181.85,0.00017533,2]
[329267915,1718206246195,-500.0,0.00017533,2]
[329267917,1718206246207,-500.0,0.00017533,2]
[329267919,1718206246218,-500.0,0.00017534,2]
[329267921,1718206246230,-500.0,0.00017534,2]
[329267923,1718206246240,-500.0,0.00017534,2]
[329267924,1718206246250,-500.0,0.00017534,2]
[329267926,1718206246260,-772.3,0.00017534,2]
[329267928,1718206246271,-506.9,0.00017534,2]
[329267931,1718206246281,-5607.12,0.00017534,2]
[329267933,1718206246292,-503.71,0.00017534,2]
[329267935,1718206246304,-500.0,0.00017534,2]
[329267937,1718206246314,-7300.26,0.00017534,2]
[329267939,1718206246325,-500.0,0.00017534,2]
[329267941,1718206246335,-1170.2,0.00017534,2]
[329267943,1718206246345,-2295.26,0.00017534,2]
[329267945,1718206246356,-602.4,0.00017683,2]
[329267947,1718206246367,-152.9,0.00017683,2]
[329267949,1718206246384,-264.65816161,0.00017706,2]